Cogmind - Beta 16.1 @@@ ROGUE MODE // 2026.03.02 @ 01:19:35 Player: Dylab Result: Destroyed by G-47 Trooper with Particle Gun Performance ------------- Evolutions (2) 1000 Regions Visited (5) 1000 Robots Destroyed (15) 75 Value Destroyed (368) 368 Prototype IDs (0) 0 Alien Tech Used (0) 0 Bonus (0) 0 TOTAL SCORE: 2443 Bonus ------- None Cogmind --------- Core Integrity 0/550 Matter 274/300 Energy 100/100 System Corruption 0% Temperature Cool (9) Movement Core (50) Location -8/Materials Parts ------- > --- POWER (1) -------- (None) > --- PROPULSION (4) --- (None) > --- UTILITY (4) ------ Improved Targeting Computer Improved Targeting Computer Advanced Targeting Computer > --- WEAPON (2) ------- Heavy Assault Rifle > --- INVENTORY (5) ---- Ion Engine Light Ion Engine Cryofiber Web Peak State ------------ > --- POWER ------------ Nuclear Core > --- PROPULSION ------- Flight Unit Flight Unit Flight Unit Flight Unit > --- UTILITY ---------- Improved Heat Sink Improved Targeting Computer Improved Targeting Computer Advanced Targeting Computer > --- WEAPON ----------- EM Pulse Cannon Light Assault Rifle > --- INVENTORY -------- Ion Engine Light Ion Engine [Rating: 21] Favorites ----------- Power Light Nuclear Core Engine Ion Engine Power Core Light Nuclear Core Propulsion Flight Unit Treads Light Treads Flight Unit Flight Unit Utility Improved Heat Sink Device Improved Heat Sink Storage Small Storage Unit Processor Improved Targeting Computer Weapon Light Assault Rifle Energy Gun Small Laser Energy Cannon EM Pulse Cannon Ballistic Gun Light Assault Rifle Build | -11 -10 -10 -10 -9 -8 ------- Run | Yrd Mat Min Exi Min Mat Slots Evolved 4 | . . . . . 4 Power . | . . . . . . Propulsion 2 | . . . . . 2 Utility 2 | . . . . . 2 Weapon . | . . . . . . Parts Attached 31 | 6 2 4 . 8 11 Power 6 | 1 . 1 . 2 2 Engine 4 | 1 . . . 2 1 Core 2 | . . 1 . . 1 Reactor . | . . . . . . Propulsion 8 | 2 2 1 . 2 1 Treads 2 | 2 . . . . . Leg . | . . . . . . Wheel . | . . . . . . Hover . | . . . . . . Flight 6 | . 2 1 . 2 1 Utility 8 | 1 . 1 . 2 4 Device 3 | . . 1 . 2 . Storage 1 | 1 . . . . . Processor 4 | . . . . . 4 Hackware . | . . . . . . Protection . | . . . . . . Artifact . | . . . . . . Weapon 9 | 2 . 1 . 2 4 Energy Gun 2 | 2 . . . . . Energy Cannon 1 | . . . . . 1 Ballistic Gun 6 | . . 1 . 2 3 Ballistic Cannon . | . . . . . . Launcher . | . . . . . . Special Weapon . | . . . . . . Impact Weapon . | . . . . . . Slashing Weapon . | . . . . . . Piercing Weapon . | . . . . . . Special Melee Weapon . | . . . . . . Unidentified Prototypes . | . . . . . . Parts Lost 18 | . 1 2 . 5 10 Power 4 | . . 1 . 2 1 Propulsion 7 | . 1 1 . 1 4 Utility 2 | . . . . 1 1 Weapon 5 | . . . . 1 4 Highest Loss Streak 10 | . 1 2 . 3 10 To Critical Strikes . | . . . . . . Average Backups 2 | . 1 3 3 3 2 Power 1 | . 1 1 1 1 1 Propulsion . | . . 1 1 1 . Utility . | . . . . . . Weapon . | . . 1 1 . . Tool/Special . | . . . . . . Unused Backups 1 | . . . . . 1 Power . | . . . . . . Propulsion . | . . . . . . Utility 1 | . . . . . 1 Weapon . | . . . . . . Tool/Special . | . . . . . . Average Slot Usage (%) 74 | . 76 54 71 78 78 Engine 4 | . 14 6 . 8 1 Core 6 | . . 4 14 3 5 Treads 3 | . 20 . . . . Flight 23 | . 5 26 28 26 26 Device 9 | . . 4 14 16 6 Storage 2 | . 13 . . . . Processor 5 | . . . . . 21 Energy Gun 3 | . 24 . . . . Energy Cannon 1 | . . . . . 5 Ballistic Gun 12 | . . 14 14 22 10 Peak Build Rating 21 | 6 6 9 9 9 21 Average Rating 9 | 4 5 4 9 8 15 On Entrance 5 | . 6 3 9 9 7 Avg Prop Armor Cover (%) . | . . . . . . Naked Turns . | . . . . . . Heaviest Build 15 | 12 12 7 7 7 15 Greatest Support 40 | 40 40 8 8 8 16 Greatest Overweight (x) 3 | 1 3 . . . 2 Average Overweight (x) . | . . . . . . Largest Inventory Capacity 8 | 8 8 5 5 5 5 Average Capacity 5 | 6 7 5 5 5 5 Most Carried 7 | 1 7 4 3 4 3 Average Carried 2 | . 1 3 3 3 2 Final Capacity 8 | 8 5 5 5 5 5 Final Carried 5 | 1 5 3 3 4 3 Class Distribution -------------------- 45% | Scavenger-Mutant 36% | Mutant 18% | Scavenger-Sprinter Dominant Class ---------------- Mutant | -10/Materials Mutant | -10/Mines Scavenger-Mutant | -10/Exiles Scavenger-Mutant | -9/Mines Scavenger-Sprinter | -8/Materials Resources | -11 -10 -10 -10 -9 -8 ----------- Run | Yrd Mat Min Exi Min Mat Matter Collected 588 | 164 104 63 . 108 149 Remotely . | . . . . . . Salvage Created 555 | . 103 97 . 43 312 Parts 39 | . 8 6 . 3 22 Haulers Intercepted 1 | . . . . . 1 Recyclers Shooed . | . . . . . . Parts Field Recycled . | . . . . . . Retrieved Matter . | . . . . . . Parts Self-Destructed . | . . . . . . Prevented . | . . . . . . Parts Restored . | . . . . . . Kills | -11 -10 -10 -10 -9 -8 ------- Run | Yrd Mat Min Exi Min Mat Combat Hostiles Destroyed 15 | . 3 2 . 5 5 Guns 13 | . 3 2 . 5 3 Cannons 2 | . . . . . 2 Classes Destroyed 7 | . 2 . . 1 4 Builder 1 | . . . . . 1 Hauler 1 | . . . . . 1 Watcher 1 | . . . . . 1 Swarmer 5 | . 1 . . 2 2 Grunt 5 | . 2 2 . . 1 Sentry 2 | . . . . . 2 Assembled 3 | . . . . 3 . Best Kill Streak 3 | . 3 2 . 3 3 Combat Bots Only 3 | . 3 2 . 3 3 Max Kills in Single Turn 1 | . 1 1 . 1 1 Gunslinging . | . . . . . . Exploded . | . . . . . . Melee . | . . . . . . Uniques/NPCs Destroyed . | . . . . . . Combat | -11 -10 -10 -10 -9 -8 -------- Run | Yrd Mat Min Exi Min Mat Hostile Shots Fired 234 | . 26 25 . 43 140 Missed 80 | . 7 12 . 16 45 Hits 154 | . 19 13 . 27 95 Projectile 154 | . 19 13 . 27 95 AOE 1 | . 1 . . . . Critical Strikes 2 | . . . . 1 1 Damage Taken 1929 | . 277 183 . 249 1220 Core 717 | . 57 29 . 74 557 Absorbed by Shields . | . . . . . . Core Remaining (%) 68 | 100 . . . 36 . Volleys Fired 81 | . 8 19 . 17 37 Largest 2 | . 2 1 . 2 2 Hottest 83 | . 80 20 . 40 83 Shots Fired 114 | . 16 19 . 22 57 Gun 95 | . 16 19 . 22 38 Cannon 19 | . . . . . 19 Launcher . | . . . . . . Special . | . . . . . . Kinetic 78 | . . 19 . 21 38 Thermal 17 | . 16 . . 1 . Explosive . | . . . . . . Electromagnetic 19 | . . . . . 19 Robot Hit Streak 11 | . 4 4 . 5 11 Robot Miss Streak 4 | . 2 1 . 4 2 Penetration Max . | . . . . . . Secondary Targets 3 | . 1 . . 1 1 Max Gunslinging Chain 1 | . 1 . . 1 1 Shots Hit Robots 75 | . 9 14 . 9 43 Core Hits 34 | . 5 7 . 7 15 Critical Kills 1 | . . 1 . . . Critical Parts Destroyed . | . . . . . . Critical Strikes 1 | . . 1 . . . Destroy 1 | . . 1 . . . Melee Attacks . | . . . . . . Impact . | . . . . . . Slashing . | . . . . . . Piercing . | . . . . . . Sneak Attacks . | . . . . . . Combat Hostiles . | . . . . . . Follow-up Attacks . | . . . . . . Damage Inflicted 1087 | . 100 115 . 95 777 Guns 703 | . 100 115 . 95 393 Cannons 384 | . . . . . 384 Explosions . | . . . . . . Melee . | . . . . . . Ramming . | . . . . . . Kinetic 591 | . . 115 . 83 393 Thermal 112 | . 100 . . 12 . Explosive . | . . . . . . Electromagnetic 384 | . . . . . 384 Impact . | . . . . . . Slashing . | . . . . . . Piercing . | . . . . . . Highest Corruption 2 | . 2 2 2 2 . Average Corruption 2 | . 2 2 2 2 . Corruption Purged . | . . . . . . Corruption Blocked . | . . . . . . Effects 11 | . 2 . 4 5 . Message Errors 3 | . 1 . 1 1 . Matter Fused 2 | . 1 . 1 . . Heat Flow Errors 2 | . . . 1 1 . Energy Discharges 1 | . . . 1 . . Parts Rejected 1 | . . . . 1 . Data Loss (major) 2 | . . . . 2 . Overload Shots . | . . . . . . Overflow Damage 9 | . . . . . 9 Projectiles 9 | . . . . . 9 Explosions . | . . . . . . Melee . | . . . . . . Knockbacks . | . . . . . . Impact . | . . . . . . Kinetic . | . . . . . . Secondary . | . . . . . . Self-Inflicted Damage . | . . . . . . Shots . | . . . . . . Rammed 1 | . . . . . 1 Targets Rammed 1 | . . . . . 1 Kicked . | . . . . . . Crushed . | . . . . . . Highest Temperature 180 | . 180 11 141 148 126 Average Temperature 51 | . 96 4 80 68 29 Received Heat Transfer 702 | . 36 102 . 60 504 Siege Activations . | . . . . . . Martial Activations . | . . . . . . Shielding Activations . | . . . . . . Robots Disrupted . | . . . . . . Combat Hostiles . | . . . . . . Robots Corrupted . | . . . . . . Combat Hostiles . | . . . . . . Parts Fried 4 | . . . . . 4 Impact Corruptions . | . . . . . . Robots Melted . | . . . . . . Combat Hostiles . | . . . . . . Parts Melted . | . . . . . . Heat Transferred 250 | . 225 . . 25 . Parts Sabotaged . | . . . . . . Parts Stolen . | . . . . . . Parts Stripped . | . . . . . . Power Chain Reactions . | . . . . . . Alert | -11 -10 -10 -10 -9 -8 ------- Run | Yrd Mat Min Exi Min Mat Maximum Alert Level . | . . . . . . Low Security (%) 100 | 100 100 100 . 100 100 Level 1 . | . . . . . . Level 2 . | . . . . . . Level 3 . | . . . . . . Level 4 . | . . . . . . Level 5 . | . . . . . . High Security . | . . . . . . Max Security . | . . . . . . Peak Influence 60 | . 60 40 . 50 47 Initial 15 | . . 15 . . . Average 14 | . 19 20 . 16 14 Influence Increases 383 | . 80 50 . 50 203 Destroy 0b10 Robot/C 240 | . 60 40 . 40 100 Destroy 0b10 Robot/NC 15 | . . . . . 15 Destroy Leader 64 | . 20 10 . 10 24 Successful Hack 4 | . . . . . 4 Partial Spotted 15 | . . . . . 15 Lose Combat Pursuer 45 | . . . . . 45 Influence Decreases 353 | . 40 60 30 50 173 Entered New Map 55 | . . 25 30 . . Time Decay 155 | . 30 15 . 50 60 Lost Part 96 | . 10 20 . . 66 Purge Threat 47 | . . . . . 47 Squads Dispatched 3 | . 1 . . . 2 Investigation 1 | . . . . . 1 Extermination . | . . . . . . Reinforcement 2 | . 1 . . . 1 Assault . | . . . . . . Garrison . | . . . . . . Intercept . | . . . . . . Searches Triggered . | . . . . . . Construction Impeded . | . . . . . . Haulers Reinforced . | . . . . . . Active Scanning Responses . | . . . . . . Cargo Convoy Interrupts . | . . . . . . Stealth | -11 -10 -10 -10 -9 -8 --------- Run | Yrd Mat Min Exi Min Mat Distress Signals . | . . . . . . Communications Jammed . | . . . . . . Distress Signals . | . . . . . . Times Spotted 33 | . 5 2 . 10 16 Peak Tracking Total 8 | . 3 2 . 7 8 Tactical Retreats 2 | . . . . . 2 Traps | -11 -10 -10 -10 -9 -8 ------- Run | Yrd Mat Min Exi Min Mat Traps Triggered 1 | . 1 . . . . Indirectly . | . . . . . . Trap Hack Attempts . | . . . . . . Triggered . | . . . . . . Disarmed . | . . . . . . Reprogrammed . | . . . . . . Reused . | . . . . . . Traps Extracted . | . . . . . . Installed . | . . . . . . Triggered . | . . . . . . Machines | -11 -10 -10 -10 -9 -8 ---------- Run | Yrd Mat Min Exi Min Mat Machines Disabled . | . . . . . . Max in Single Turn . | . . . . . . Garrison Access 1 | . . . . . 1 Machines Repaired . | . . . . . . Machines Dismantled . | . . . . . . Machines Sabotaged . | . . . . . . Overloaded Fab Kills . | . . . . . . Hacking | -11 -10 -10 -10 -9 -8 --------- Run | Yrd Mat Min Exi Min Mat Machines Accessed 7 | . . . 4 . 3 Terminals 2 | . . . . . 2 Fabricators . | . . . . . . Repair Stations . | . . . . . . Recycling Units . | . . . . . . Scanalyzers . | . . . . . . Garrison Access 1 | . . . . . 1 Total Hacks 12 | . . . 4 . 8 Successful 8 | . . . 4 . 4 Failed 4 | . . . . . 4 Catastrophic 2 | . . . . . 2 Database Lockouts . | . . . . . . Manual 1 | . . . . . 1 Terminals 7 | . . . . . 7 Fabricators . | . . . . . . Repair Stations . | . . . . . . Recycling Units . | . . . . . . Scanalyzers . | . . . . . . Garrison Access 1 | . . . . . 1 Terminal Hacks 7 | . . . 4 . 3 Record 4 | . . . 4 . . Emergency Access Points 1 | . . . . . 1 Unreport Threat 1 | . . . . . 1 Zone Layout 1 | . . . . . 1 Fabricator Hacks . | . . . . . . Repair Station Hacks . | . . . . . . Recycling Unit Hacks . | . . . . . . Scanalyzer . | . . . . . . Garrison Access Hacks 1 | . . . . . 1 Seal Access 1 | . . . . . 1 Unauthorized Hacks . | . . . . . . Terminals . | . . . . . . Fabricators . | . . . . . . Repair Stations . | . . . . . . Recycling Units . | . . . . . . Scanalyzers . | . . . . . . Garrison Access . | . . . . . . Data Cores Recovered . | . . . . . . Used . | . . . . . . Hacking Detections 2 | . . . . . 2 Full Trace Events 1 | . . . . . 1 Feedback Events . | . . . . . . Feedback Blocked . | . . . . . . Robot Schematics Acquired . | . . . . . . Robots Built . | . . . . . . Authchips . | . . . . . . Time . | . . . . . . Total Robot Build Rating . | . . . . . . Part Schematics Acquired . | . . . . . . Parts Built . | . . . . . . Authchips . | . . . . . . Time . | . . . . . . Total Part Build Rating . | . . . . . . Part Studies Acquired . | . . . . . . Parts Repaired . | . . . . . . Time . | . . . . . . Parts Recycled . | . . . . . . Recycled Matter . | . . . . . . Retrieved Matter . | . . . . . . Retrieved Components . | . . . . . . Parts Scanalyzed . | . . . . . . Part Schematics Acquired . | . . . . . . Parts Damaged . | . . . . . . Bothacking | -11 -10 -10 -10 -9 -8 ------------ Run | Yrd Mat Min Exi Min Mat Used RIF Installer . | . . . . . . Robots Hacked . | . . . . . . Non-combat . | . . . . . . Combat . | . . . . . . Robot Hacks Applied . | . . . . . . Relay Couplers Released . | . . . . . . Fabnet Peak Effective % . | . . . . . . Robots Rewired . | . . . . . . Allies Hacked . | . . . . . . Hacks Repelled . | . . . . . . Allies | -11 -10 -10 -10 -9 -8 -------- Run | Yrd Mat Min Exi Min Mat Total Allies . | . . . . . . Largest Group . | . . . . . . Highest-Rated Group . | . . . . . . Highest-Rated Ally . | . . . . . . Total Orders . | . . . . . . Ally Attacks . | . . . . . . Total Damage . | . . . . . . Kills . | . . . . . . Allies Corrupted . | . . . . . . Allies Melted . | . . . . . . Intel | -11 -10 -10 -10 -9 -8 ------- Run | Yrd Mat Min Exi Min Mat Active Infowar (turns) 34 | . . . . 34 . Structural 2 | . . . . 2 . Seismic 32 | . . . . 32 . Robot Analysis Total . | . . . . . . Derelict Logs Recovered . | . . . . . . Drone Launches . | . . . . . . Drone Recoveries . | . . . . . . Exploration | -11 -10 -10 -10 -9 -8 ------------- Run | Yrd Mat Min Exi Min Mat Turns Passed 947 | 110 134 55 259 155 234 Spaces Moved 1492 | 72 94 42 699 277 308 Core 25 | 14 1 . . . 10 Treads 106 | 58 48 . . . . Legs . | . . . . . . Wheels . | . . . . . . Hover . | . . . . . . Flight 1361 | . 45 42 699 277 298 Fastest Speed 31 | 50 37 37 37 37 31 Average Speed 45 | 140 105 37 37 37 33 Slowest Speed 200 | 160 200 37 37 40 150 Overloaded Moves . | . . . . . . Propulsion Burnouts . | . . . . . . Robots Hopped 5 | . . . . 2 3 Potential Cave-ins . | . . . . . . Cave-ins Triggered . | . . . . . . Exploration Rate (%) 40 | 5 28 12 93 69 35 Regions Visited 5 Branch Regions 3 Pre-discovered Areas . | . . . . . . Known Exits Taken . | . . . . . . Unknown Exits Taken 5 | 1 1 1 1 1 . Scrap Searched 1 | . . . . 1 . Spaces Dug . | . . . . . . Terrain Destroyed . | . . . . . . Melee . | . . . . . . Projectile . | . . . . . . AOE . | . . . . . . Terrain Rammed . | . . . . . . Walls Destroyed . | . . . . . . Machines Disabled . | . . . . . . Actions | -11 -10 -10 -10 -9 -8 --------- Run | Yrd Mat Min Exi Min Mat Total 1635 | 78 114 64 698 304 377 Wait 25 | . . . . 4 21 Move 1477 | 71 93 41 698 272 302 Hop 5 | . . . . 2 3 Pick Up 5 | 1 3 . . . 1 Fast Attach 21 | 6 2 2 . 5 6 Attach 7 | . 1 2 . 1 3 Detach 4 | . 4 . . . . Swap 6 | . . . . 3 3 Drop 3 | . 3 . . . . Fire 81 | . 8 19 . 17 37 Melee . | . . . . . . Ram 1 | . . . . . 1 Kick . | . . . . . . Crush . | . . . . . . Escape Stasis . | . . . . . . Rewire . | . . . . . . Trap . | . . . . . . Miscellaneous . | . . . . . . Route ------- -11/Scrapyard -10/Materials -10/Mines -10/Exiles (discovered 2 exits: [*Min x2]) -9/Mines -8/Materials History --------- Turn | Location | Event 9 | -11/Scrapyard | Discovered new exit (range 16) 111 | -11/Scrapyard | Entered Materials 237 | -10/Materials | Discovered new exit (range 15) 245 | -10/Materials | Entered Mines 298 | -10/Mines | Deemed a non-threat by the Exiles lab entrance 298 | -10/Mines | Discovered new exit (range 5) 300 | -10/Mines | Entered Exiles 300 | -10/Exiles | Found Exiles lab abandoned 359 | -10/Exiles | Discovered new exit (range 12) 401 | -10/Exiles | Discovered new exit (range 15) 559 | -10/Exiles | Entered Mines 575 | -9/Mines | Build established: Scavenger-Mutant 601 | -9/Mines | Core integrity fell below 50% 610 | -9/Mines | Received a Rocket Launcher from a helpful Derelict 631 | -9/Mines | Lost 3 parts (1p1n1w) 671 | -9/Mines | Found DCF Scrap (13 items) 689 | -9/Mines | Assembled infested the area 694 | -9/Mines | Assisted by a Guerilla fighting off Assembled 708 | -9/Mines | Discovered new exit (range 14) 714 | -9/Mines | Entered Materials 714 | -8/Materials | Evolved 4 slots: Propulsion x2, Utility x2 913 | -8/Materials | Core integrity fell below 50% 940 | -8/Materials | Core integrity fell below 20% 948 | -8/Materials | Destroyed by G-47 Trooper with Particle Gun Last Messages --------------- K-01 Serf collects debris. Y-45 Defender IFF system glitched. K-01 Serf collects debris. Hvy. Assault Rifle destroyed. Y-45 Defender IFF system glitched. K-01 Serf collects debris. M-13 Machinist repairs G-47 Trooper. Y-45 Defender misfires. K-01 Serf collects debris. Acquired Hvy. Assault Rifle. M-13 Machinist repairs G-47 Trooper. K-01 Serf collects debris. Y-45 Defender destroyed. Switching to secondary target: G-47 Trooper. Hvy. Assault Rifle destroyed. K-01 Serf collects debris. Acquired 57 matter. K-01 Serf collects debris. G-47 Trooper destroyed. K-01 Serf collects debris. Map ----- +----------------------------------------------------+ | #?# # # = #????????? | | " """ #?# # # !!! #????????? | | " """ #?# # # !%!! #????????? | | " """ #?# ######################### #????????? | | #######?# #???????????????????????# #????????? | | ????????# #???????????????????????# #????????? | | ????????# #???????????????????????# #????????? | | ????????# #???????????????????????# #????????? | | ????????# #???????????????????????+ #????????? | | ????????# #???????????????????????# #????????? | | ????????# | #???????????????????????# #????????? | | ????????# =######################### #????????? | | ????????# #????????? | | ######### %[ #????????? | | *%= #????????? | | ##########################+########## #????????? | | ??????????????????????# % #????# #????????? | | ??????????????????????# """ #????# #????????? | | ??????????????????????# [ "" #????# #????????? | | ??????????????????????# =%%g"" #????# #????????? | | ??????????????????????# =* k #????# /????????? | | ??????????????????????#!%g #????# #????????? | | ??????????????????????# !! #????+ #????????? | | ??????????????????????# *[ ! #????# #????????? | | ??????????????????????#=!!!! #????? #????????? | | ??????????????????????###@######????? #????????? | | ????????????????????????###?????????? ????????? | | ?????????????????????????????????????????????????? | | ?????????????????????????????????????????????????? | | ?????????????????????????????????????????????????? | | ?????????????????????????????????????????????????? | | ?????????????????????????????????????????????????? | | ?????????????????????????????????????????????????? | | ?????????????????????????????????????????????????? | | ?????????????????????????????????????????????????? | | ?????????????????????????????????????????????????? | | ?????????????????????????????????????????????????? | | ?????????????????????????????????????????????????? | | ?????????????????????????????????????????????????? | | ?????????????????????????????????????????????????? | | | | | | | | | | | | | | | | | | | | | +----------------------------------------------------+ Best States ------------- Heat Dissipation 45 Energy Generation 14 Energy Capacity 250 Matter Stores 300 Matter Capacity 300 Sight Range 16 Terrain Scan Density 10 Evasion (%) 63 Targeting Accuracy 20 Recoil Reduction 2 Item Schematics ----------------- None Robot Schematics ------------------ None Fabricated ------------ Nothing Repaired ---------- Nothing Studied --------- None Alien Tech Used ----------------- None Achievements -------------- None Challenges ------------ None Game ------ Seed CarbideDeepStick Manual? 0 Play Time 00:19:31 Cumulative 97.4 hours Start 2026.03.02 @ 01:03:14 End 2026.03.02 @ 01:19:35 Sessions 1 Manual Loads 0 Difficulty Rogue Special Mode None Game No. 73 Rogue 3 Adventurer 3 Explorer 67 Win Type - Total 1 Types 1/0/0/0/0/0/0/0/0/0 Lore% 22 Gallery% 48 Achievement% 34 Wizard Run 0 Options --------- Layout 0 ASCII 0 Keyboard 0 Movement Numpad Keybinds 1 Fullscreen 2 Font 24/Smallcaps Map View 38x28 Zoom Use 97% Tactical HUD 0 Map Filters NONE Filters NONE Steam 1 RUN: 4ae66563-7c3f-4d87-8e30-a6e7ae448cbf